bitfinex/quotes_ETHUSD_20250903
["timestamp","ask_amount","ask_price","bid_price","bid_amount"]
[1756935548210,15.81807629,4469.1,4469.0,0.001]
[1756935551220,15.99007629,4469.1,4469.0,0.001]
[1756935552083,16.47277629,4469.1,4469.0,0.001]
[1756935556618,15.99007629,4469.1,4469.0,0.001]
[1756935558521,15.81807629,4469.1,4469.0,0.001]
[1756935558926,15.81707629,4469.1,4469.0,0.001]
[1756935559234,15.99187629,4469.1,4469.0,0.001]
[1756935561233,2.23768712,4468.9,4468.8,1e-08]
[1756935561395,2.23768712,4468.9,4467.6,0.4757]
[1756935561396,2.23803768,4468.2,4468.1,1e-08]
[1756935561595,16.03925992,4468.2,4468.1,1e-08]
[1756935561806,16.81240644,4468.2,4468.1,1e-08]
[1756935562009,17.98660075,4468.2,4468.1,1e-08]
[1756935562602,14.26360075,4468.2,4468.1,1e-08]
[1756935562789,17.98660075,4468.2,4468.1,1e-08]
[1756935563195,18.27055877,4468.2,4468.1,1e-08]
[1756935563506,18.72865877,4468.2,4468.1,1e-08]
[1756935567107,18.27055877,4468.2,4468.1,1e-08]
[1756935567501,18.62156475,4468.2,4468.1,1e-08]
[1756935569202,19.07966475,4468.2,4468.1,1e-08]
[1756935570128,18.62156475,4468.2,4468.1,1e-08]
[1756935570715,19.05006475,4468.2,4468.1,1e-08]
[1756935571331,18.73356475,4468.2,4468.1,1e-08]
[1756935573039,18.38255877,4468.2,4468.1,1e-08]
[1756935573445,2.23823805,4467.8,4467.7,0.4433]
[1756935573650,2.23868902,4466.9,4466.8,0.025]
[1756935573810,6.07368902,4466.9,4466.8,0.025]
[1756935574010,6.07368902,4466.9,4466.8,0.312]
[1756935574211,6.07368902,4466.9,4466.8,0.7553]
[1756935574424,6.07368902,4466.9,4466.8,1.2355]
[1756935577162,6.07368902,4466.9,4466.8,1.4263634]
[1756935577163,3.835,4466.9,4466.8,1.4263634]
[1756935577364,3.835,4466.9,4466.8,1.4273634]
[1756935577561,6.07368902,4466.9,4466.8,1.4273634]
[1756935578261,2.35068902,4466.9,4466.8,1.4273634]
[1756935580988,6.07368902,4466.9,4466.8,1.4273634]
[1756935590998,2.35068902,4466.9,4466.8,1.4273634]
[1756935591159,6.07368902,4466.9,4466.8,1.4273634]
[1756935593387,2.35068902,4466.9,4466.8,1.4273634]
[1756935593569,6.07368902,4466.9,4466.8,1.4273634]
[1756935596395,0.112,4466.9,4466.8,1.4273634]
[1756935596594,3.835,4466.9,4466.8,1.4273634]
[1756935598264,6.07368902,4466.9,4466.8,0.9840634]
[1756935598595,0.112,4466.9,4466.8,0.9840634]
[1756935599706,0.112,4466.9,4466.8,1.4273634]
[1756935599863,2.35037514,4467.6,4466.9,0.792]
[1756935600195,0.112,4467.6,4467.5,0.2933]
[1756935602998,5.96133212,4467.7,4467.2,1.93700961]
[1756935604310,3.723,4467.7,4467.2,1.93700961]
[1756935604492,3.723,4467.7,4467.3,0.41755944]
[1756935605887,3.723,4467.7,4467.3,0.91085944]
[1756935606624,3.723,4467.7,4467.6,0.2933]
[1756935606824,3.723,4467.7,4467.6,1.2474]
[1756935608714,3.723,4468.0,4467.6,1.2474]
[1756935608915,3.723,4468.0,4467.7,0.9541]
[1756935608916,5.9611484,4468.0,4467.7,0.9541]
[1756935609331,5.96209657,4468.1,4467.9,0.2933]
[1756935612935,2.24009657,4468.1,4467.9,0.2933]
[1756935613141,5.96209657,4468.1,4467.9,0.2933]
[1756935613718,0.002,4468.1,4468.0,1.7461]
[1756935613929,0.002,4468.1,4468.0,2.0394]
[1756935616149,0.002,4468.1,4468.0,1.0853]
[1756935617451,0.002,4468.1,4468.0,1.5786]
[1756935618561,0.002,4468.1,4468.0,2.0394]
[1756935619233,0.002,4468.1,4468.0,1.5786]
[1756935619634,0.002,4468.1,4468.0,1.0853]
[1756935620965,0.002,4468.1,4468.0,1.5786]
[1756935621566,0.002,4468.1,4468.0,1.0853]
[1756935621767,0.002,4468.1,4468.0,2.0394]
[1756935621938,0.002,4468.1,4468.0,2.1514]
[1756935622138,0.002,4468.1,4468.0,2.96256515]
[1756935626965,0.002,4468.1,4468.0,2.50176515]
[1756935627766,0.002,4468.1,4468.0,6.22376515]
[1756935628673,0.002,4468.1,4468.0,6.68456515]
[1756935629253,0.002,4468.1,4468.0,6.68556515]
[1756935630653,0.002,4468.1,4468.0,6.22476515]
[1756935630845,0.002,4468.1,4468.0,5.73146515]
[1756935634579,0.002,4468.1,4468.0,6.22066515]
[1756935634749,0.002,4468.1,4468.0,6.68586515]
[1756935636747,0.002,4468.1,4468.0,6.22066515]
[1756935637372,0.002,4468.1,4468.0,5.73146515]
[1756935638244,0.002,4468.1,4468.0,6.19666515]
[1756935639790,0.002,4468.1,4468.0,5.73146515]
[1756935641575,0.3132,4468.1,4468.0,4.627]
[1756935641776,2.55128777,4468.1,4468.0,4.627]
[1756935641982,3.00608777,4468.1,4468.0,4.627]
[1756935642648,2.55128777,4468.1,4468.0,4.627]
[1756935642978,3.00608777,4468.1,4468.0,4.627]
[1756935643178,3.44258777,4468.1,4468.0,4.627]
[1756935643385,2.55128777,4468.1,4468.0,4.627]
[1756935651012,3.44258777,4468.1,4468.0,4.627]
[1756935651210,2.55128777,4468.1,4468.0,4.627]
[1756935652111,0.002,4468.1,4468.0,4.9278]
[1756935652317,2.24008777,4468.1,4468.0,4.627]
[1756935654016,2.55128777,4468.1,4468.0,4.627]
[1756935654221,0.002,4468.1,4468.0,4.627]
[1756935654718,2.24008777,4468.1,4468.0,4.627]
[1756935655019,0.002,4468.1,4468.0,4.627]
[1756935656220,0.002,4468.1,4468.0,4.9278]
[1756935657893,2.24008777,4468.1,4468.0,4.9278]
[1756935658423,2.24008777,4468.1,4468.0,4.627]
[1756935661429,0.002,4468.1,4468.0,4.627]
[1756935661631,2.24008777,4468.1,4468.0,4.627]
[1756935662347,0.002,4468.1,4468.0,4.9198]
[1756935663033,2.24008777,4468.1,4468.0,4.9198]
[1756935663232,2.24008777,4468.1,4468.0,5.59266676]
[1756935664035,2.24008777,4468.1,4468.0,5.29986676]
[1756935666536,2.55068777,4468.1,4468.0,5.29986676]
[1756935667236,2.55068777,4468.1,4468.0,9.54986676]
[1756935667433,0.002,4468.1,4468.0,9.54986676]
[1756935667936,0.002,4468.1,4468.0,9.84266676]
[1756935669134,2.24008777,4468.1,4468.0,9.84266676]
[1756935669336,0.002,4468.1,4468.0,6.06816676]
[1756935669535,0.002,4468.1,4468.0,7.48233344]
[1756935674723,0.002,4468.1,4468.0,7.05243344]
[1756935675560,0.002,4468.1,4468.0,16.9704713]
[1756935677457,0.002,4468.1,4468.0,22.7704713]
[1756935680653,0.002,4468.1,4468.0,22.3385713]
[1756935681165,0.002,4468.1,4468.0,22.7684713]
[1756935688187,0.3126,4468.1,4468.0,20.14919142]
[1756935688888,0.3126,4468.1,4468.0,20.94119142]
[1756935689086,0.3126,4468.1,4468.0,12.74013344]
[1756935689257,1.2615,4468.1,4468.0,11.75486676]
[1756935689465,1.2615,4468.1,4468.0,7.50486676]
[1756935690363,1.2615,4468.1,4468.0,4.57786676]
[1756935690583,1.2615,4468.1,4468.0,8.29686676]
[1756935692090,0.8019,4468.1,4468.0,8.29686676]
[1756935693804,0.8019,4468.1,4468.0,4.57786676]
[1756935694106,0.8019,4468.1,4468.0,8.29686676]
[1756935696205,0.8019,4468.1,4468.0,10.53500462]
[1756935697208,0.3126,4468.1,4468.0,10.53500462]
[1756935697397,0.7736,4468.1,4468.0,10.53500462]
[1756935697796,0.7736,4468.1,4468.0,10.42300462]
[1756935700579,0.3126,4468.1,4468.0,10.42300462]
[1756935702001,0.002,4468.1,4468.0,10.73720462]
[1756935702611,0.002,4468.1,4468.0,12.03474812]
[1756935703310,0.002,4468.1,4468.0,12.46274812]
[1756935707810,0.002,4468.1,4468.0,12.57474812]
[1756935708502,0.002,4468.1,4468.0,16.82474812]
[1756935708701,0.002,4468.1,4468.0,16.15188136]
[1756935708903,0.002,4468.1,4468.0,16.82468776]
[1756935710023,0.002,4468.1,4468.0,17.29808776]
[1756935710307,0.002,4468.1,4468.0,16.87008776]
[1756935710513,0.002,4468.1,4468.0,17.29808776]
[1756935713597,0.002,4468.1,4468.0,16.82468776]
[1756935714292,0.002,4468.1,4468.0,17.29808776]
[1756935714985,0.2932,4468.1,4468.0,12.36348776]
[1756935715186,0.2932,4468.1,4468.0,16.08248776]
[1756935715414,0.002,4468.1,4468.0,16.08248776]
[1756935715617,0.002,4468.1,4468.0,16.39668776]
[1756935719594,0.7542,4468.1,4468.0,13.8443499]
[1756935719799,1.2179,4468.1,4468.0,13.8443499]
[1756935720218,1.2179,4468.1,4468.0,4.5778064]
[1756935720422,1.2179,4468.1,4468.0,7.624]
[1756935726826,0.7542,4468.1,4468.0,7.624]
[1756935729010,0.2932,4468.1,4468.0,7.624]
[1756935735312,0.2932,4468.1,4468.0,4.624]
[1756935735512,3.45818777,4468.1,4468.0,0.905]
[1756935735729,4.0278071,4468.1,4468.0,3.719]
[1756935735941,4.1398071,4468.1,4468.0,0.001]
[1756935736756,4.22954541,4468.1,4468.0,0.001]
[1756935737846,4.80855737,4468.1,4468.0,0.001]
[1756935738017,7.80855737,4468.1,4468.0,0.001]
[1756935741655,11.53155737,4468.1,4468.0,0.001]
[1756935746950,2.23853868,4467.2,4467.1,1e-08]
[1756935747151,9.42602334,4467.2,4467.1,1e-08]
[1756935747459,10.75923956,4467.2,4467.1,1e-08]
[1756935748554,2.23898976,4466.3,4466.2,0.00219151]
[1756935748857,6.07398976,4466.3,4466.2,0.00219151]
[1756935749290,6.74729598,4466.3,4466.2,0.00219151]
[1756935750157,7.6459177,4466.3,4466.2,0.00219151]
[1756935751450,2.2391903,4465.9,4465.8,1e-08]
[1756935751690,12.51558979,4465.9,4465.8,1e-08]
[1756935751887,16.59947101,4465.9,4465.8,1e-08]
[1756935752052,18.1648071,4465.9,4465.8,1e-08]
[1756935752770,18.1648071,4465.9,4465.6,0.05158019]
[1756935752771,5.23924044,4465.8,4465.6,1e-08]
[1756935752970,9.63508633,4465.7,4465.6,1e-08]
[1756935753280,2.23969181,4464.9,4464.8,1e-08]
[1756935753499,17.81571063,4464.9,4464.8,1e-08]
[1756935753657,18.46531557,4464.9,4464.8,1e-08]
[1756935753977,19.40231557,4464.9,4464.8,1e-08]
[1756935754189,19.40131557,4464.9,4464.8,1e-08]
[1756935755262,19.72218057,4464.9,4464.8,1e-08]
[1756935758159,15.98618057,4464.9,4464.8,1e-08]
[1756935758356,19.72318057,4464.9,4464.8,1e-08]
[1756935758954,19.27008057,4464.9,4464.8,1e-08]
[1756935759189,19.72318057,4464.9,4464.8,1e-08]
[1756935760955,15.98618057,4464.9,4464.8,1e-08]
[1756935761161,19.27008057,4464.9,4464.8,1e-08]
[1756935761385,19.38208057,4464.9,4464.8,1e-08]
[1756935761764,18.57631557,4464.9,4464.8,1e-08]
[1756935761965,18.28041557,4464.9,4464.8,1e-08]
[1756935763693,18.60228057,4464.9,4464.8,1e-08]
[1756935763901,18.60128057,4464.9,4464.8,1e-08]
[1756935764293,18.89718057,4464.9,4464.8,1e-08]
[1756935764672,19.38108057,4464.9,4464.8,1e-08]
[1756935764871,19.83418057,4464.9,4464.8,1e-08]
[1756935769615,19.35028057,4464.9,4464.8,1e-08]
[1756935770920,18.89718057,4464.9,4464.8,1e-08]
[1756935771919,19.83418057,4464.9,4464.8,1e-08]
[1756935772126,19.35028057,4464.9,4464.8,1e-08]
[1756935772627,18.89718057,4464.9,4464.8,1e-08]
[1756935773901,19.83418057,4464.9,4464.8,1e-08]
[1756935774829,18.89718057,4464.9,4464.8,1e-08]
[1756935775624,12.69371182,4464.9,4464.8,1e-08]
[1756935776428,13.17761182,4464.9,4464.8,1e-08]
[1756935776806,13.63071182,4464.9,4464.8,1e-08]
[1756935777003,8.95771182,4464.9,4464.8,1e-08]
[1756935777301,12.69271182,4464.9,4464.8,1e-08]
[1756935780334,10.42211997,4464.4,4464.3,0.001]
[1756935780626,14.59626693,4464.4,4464.3,0.001]
[1756935780831,15.04396781,4464.4,4464.3,0.2991]
[1756935782115,15.04396781,4464.4,4464.3,0.7743]
[1756935782923,6.12779049,4464.4,4464.3,0.7743]
[1756935783111,9.53364353,4464.4,4464.3,1.2117]
[1756935783310,9.08594265,4464.4,4464.3,1.2117]
[1756935784432,9.08594265,4464.4,4464.3,0.7743]
[1756935785019,9.08594265,4464.4,4464.3,1.2117]
[1756935785232,9.08594265,4464.4,4464.3,0.7743]
[1756935787131,9.41408961,4464.4,4464.3,0.7743]
[1756935791104,5.68008961,4464.4,4464.3,0.7743]
[1756935791316,9.41208961,4464.4,4464.3,0.7743]
[1756935792040,9.41208961,4464.4,4464.3,1.2117]
[1756935792338,9.41208961,4464.4,4464.3,0.7743]
[1756935794641,9.41208961,4464.4,4464.3,1.2117]
[1756935795019,9.41108961,4464.4,4464.3,1.2117]
[1756935796643,5.68008961,4464.4,4464.3,0.7743]
[1756935796939,5.68008961,4464.4,4464.3,1.2117]
[1756935797135,9.41108961,4464.4,4464.3,1.2117]
[1756935798118,9.41108961,4464.4,4464.3,0.7743]
[1756935801654,11.13408961,4464.4,4464.3,0.7743]
[1756935802851,11.13408961,4464.4,4464.3,0.2991]
[1756935803548,7.40308961,4464.4,4464.3,0.2991]
[1756935803717,11.13208961,4464.4,4464.3,0.2991]
[1756935805422,7.40308961,4464.4,4464.3,0.2991]
[1756935805650,11.13208961,4464.4,4464.3,0.2991]
[1756935807134,11.13208961,4464.4,4464.3,0.001]
[1756935807548,11.13208961,4464.4,4464.3,0.2991]
[1756935807856,7.80294265,4464.4,4464.3,1.2117]
[1756935808052,7.80294265,4464.4,4464.3,0.7743]
[1756935808553,7.80294265,4464.4,4464.3,1.2117]
[1756935809257,7.80594265,4464.4,4464.3,1.2117]
[1756935810426,7.80594265,4464.4,4464.3,0.7743]
[1756935810822,7.80594265,4464.4,4464.3,1.2069]
[1756935811756,7.80594265,4464.4,4464.3,0.7743]
[1756935812056,7.80594265,4464.4,4464.3,1.2069]
[1756935812459,4.07494265,4464.4,4464.3,1.2069]
[1756935812655,7.80494265,4464.4,4464.3,1.2069]
[1756935813268,3.96294265,4464.4,4464.3,1.9989]
[1756935813448,7.69294265,4464.4,4464.3,2.19879]
[1756935814339,5.453,4464.4,4464.3,2.19879]
[1756935814764,1.723,4464.4,4464.3,2.19879]
[1756935814936,5.453,4464.4,4464.3,2.19879]
[1756935815935,3.96294265,4464.4,4464.3,2.19879]
[1756935816169,7.69294265,4464.4,4464.3,2.19879]
[1756935817761,7.69294265,4464.4,4464.3,1.76619]
[1756935819465,7.69294265,4464.4,4464.3,2.19879]
[1756935819859,3.96294265,4464.4,4464.3,2.19879]
[1756935820240,7.69094265,4464.4,4464.3,2.19879]
[1756935821771,7.69094265,4464.4,4464.3,1.76619]
[1756935823651,7.69094265,4464.4,4464.3,2.19879]
[1756935823970,7.69094265,4464.4,4464.3,1.76619]
[1756935826486,5.96694265,4464.4,4464.3,1.76619]
[1756935827870,6.26464265,4464.4,4464.3,0.793]
[1756935828439,5.96694265,4464.4,4464.3,0.793]
[1756935829078,6.26464265,4464.4,4464.3,0.793]
[1756935830644,2.23994265,4464.4,4464.3,1.0895]
[1756935830842,5.96594265,4464.4,4464.3,1.9957]
[1756935831042,5.96594265,4464.4,4464.3,0.793]
[1756935833473,5.96594265,4464.4,4464.3,1.0895]
[1756935839282,5.96594265,4464.4,4464.3,0.793]
[1756935839583,5.96594265,4464.4,4464.3,1.0895]
[1756935840880,5.96594265,4464.4,4464.3,1.5833]
[1756935842180,5.96594265,4464.4,4464.3,1.0895]
[1756935842683,6.26424265,4464.4,4464.3,0.793]
[1756935843388,5.96594265,4464.4,4464.3,0.793]
[1756935843915,5.96394265,4464.4,4464.3,0.793]
[1756935845785,3.724,4464.4,4464.3,0.793]
[1756935845968,4.0223,4464.4,4464.3,0.793]
[1756935846168,6.26224265,4464.4,4464.3,0.793]
[1756935846972,5.96394265,4464.4,4464.3,0.793]
[1756935847173,3.724,4464.4,4464.3,1.0957]
[1756935847371,3.724,4464.4,4464.3,1.71027]
[1756935847594,3.724,4464.4,4464.3,1.21647]
[1756935847775,6.26224265,4464.4,4464.3,0.91377]
[1756935848173,2.53824265,4464.4,4464.3,0.91377]
[1756935849407,2.53824265,4464.4,4464.3,0.793]
[1756935850309,3.02314265,4464.4,4464.3,0.793]
[1756935850810,3.02314265,4464.4,4464.3,0.64282737]
[1756935852313,2.53824265,4464.4,4464.3,0.64282737]
[1756935853800,2.23994265,4464.4,4464.3,0.64282737]
[1756935854614,2.23994265,4464.4,4464.3,0.94552737]
[1756935855212,2.23994265,4464.4,4464.3,0.64282737]
[1756935856475,2.53824265,4464.4,4464.3,0.64282737]
[1756935857721,3.02314265,4464.4,4464.3,0.64282737]
[1756935857902,3.47584265,4464.4,4464.3,0.64282737]
[1756935867538,2.23994265,4464.4,4464.3,0.64282737]
[1756935868108,2.53824265,4464.4,4464.3,0.64282737]
[1756935869635,2.99094265,4464.4,4464.3,0.64282737]
[1756935870335,2.53824265,4464.4,4464.3,0.64282737]
[1756935870538,2.97034265,4464.4,4464.3,0.64282737]
[1756935870736,2.53824265,4464.4,4464.3,0.64282737]
[1756935871540,2.97034265,4464.4,4464.3,0.64282737]
[1756935873609,2.53824265,4464.4,4464.3,0.64282737]
[1756935875047,2.53824265,4464.4,4464.3,4.89282737]
[1756935876249,2.53824265,4464.4,4464.3,4.89382737]
[1756935876747,2.23994265,4464.4,4464.3,4.89382737]
[1756935876911,2.95914265,4464.4,4464.3,4.89382737]
[1756935877529,2.52704265,4464.4,4464.3,4.89382737]
[1756935880953,2.52704265,4464.4,4464.3,0.64382737]
[1756935884255,2.52704265,4464.4,4464.3,0.001]
[1756935887258,2.24194265,4464.4,4464.3,0.001]
[1756935887425,2.52704265,4464.4,4464.3,0.001]
[1756935890252,2.24194265,4464.4,4464.3,0.001]
[1756935890458,2.52704265,4464.4,4464.3,0.001]
[1756935893164,6.25204265,4464.4,4464.3,0.001]
[1756935896066,5.96694265,4464.4,4464.3,0.001]
[1756935896274,6.25204265,4464.4,4464.3,0.001]
[1756935896669,7.13434265,4464.4,4464.3,0.001]
[1756935897052,6.25204265,4464.4,4464.3,0.001]
[1756935907066,11.14785342,4464.4,4464.3,0.001]
[1756935907467,11.46335342,4464.4,4464.3,0.001]
[1756935908117,12.37355342,4464.4,4464.3,0.001]
[1756935908404,13.82242232,4464.4,4464.3,0.001]
[1756935910072,13.36002232,4464.4,4464.3,0.001]
[1756935910596,14.15056928,4464.4,4464.3,0.001]
[1756935910793,14.47143428,4464.4,4464.3,0.001]
[1756935911505,17.47143428,4464.4,4464.3,0.001]
[1756935911696,22.65234505,4464.4,4464.3,0.001]
[1756935911900,17.47143428,4464.4,4464.3,0.001]
[1756935913790,22.65234505,4464.4,4464.3,0.001]
[1756935914899,17.47143428,4464.4,4464.3,0.001]
[1756935916599,22.65234505,4464.4,4464.3,0.001]
[1756935917893,17.47143428,4464.4,4464.3,0.001]
[1756935920280,2.2404947,4463.3,4463.2,0.4593]
[1756935920481,5.9654947,4463.3,4463.2,0.4593]
[1756935920782,6.0774947,4463.3,4463.2,1.1863]
[1756935921117,6.5367947,4463.3,4463.2,1.1863]
[1756935921912,6.5367947,4463.3,4463.2,0.2927]
[1756935922211,2.24069551,4462.9,4462.8,0.4843]
[1756935922381,2.24069551,4462.9,4462.8,0.025]
[1756935922775,2.24069551,4462.9,4462.8,0.3177]
[1756935923206,2.24069551,4462.9,4462.8,0.777]
[1756935923720,2.24069551,4462.9,4462.8,1.2113]
[1756935924032,2.24069551,4462.9,4462.8,0.777]
[1756935924704,2.24069551,4462.9,4462.8,1.2113]
[1756935926023,2.24069551,4462.9,4462.8,0.777]
[1756935928046,2.24069551,4462.9,4462.8,0.3177]
[1756935930048,2.24069551,4462.9,4462.8,0.025]
[1756935930413,2.24069551,4462.9,4462.8,0.3146]
[1756935931046,2.24069551,4462.9,4462.8,0.3156]
[1756935931416,2.54429551,4462.9,4462.8,0.026]
[1756935932542,2.24069551,4462.9,4462.8,0.026]
[1756935933438,2.24069551,4462.9,4462.8,0.7856]
[1756935934145,2.24069551,4462.9,4462.8,0.3156]
[1756935934509,2.24069551,4462.9,4462.8,0.026]
[1756935934510,8.17660628,4462.9,4462.8,0.026]
[1756935934742,8.64367931,4462.9,4462.8,0.026]
[1756935935426,9.09117931,4462.9,4462.8,0.026]
[1756935935827,3.15916854,4462.9,4462.8,0.026]
[1756935936145,8.65656309,4462.9,4462.8,0.026]
[1756935936350,8.63977931,4462.9,4462.8,0.026]
[1756935937046,12.36477931,4462.9,4462.8,0.026]
[1756935937355,12.36477931,4462.9,4461.8,0.025]
[1756935937356,2.24215246,4460.0,4458.8,0.025]
[1756935937519,2.24312496,4458.1,4456.8,0.025]
[1756935937721,10.72771945,4457.9,4457.3,0.47]
[1756935938036,10.72771945,4457.9,4456.8,0.025]
[1756935938037,15.78547397,4457.9,4456.8,0.025]
[1756935938237,2.24371199,4456.9,4456.8,0.025]
[1756935938436,9.00191077,4456.9,4455.8,0.47]
[1756935938739,5.18091077,4457.1,4456.0,0.47]
[1756935939057,0.47,4457.0,4456.1,0.4528]
[1756935939249,0.47,4457.0,4455.2,2.2445455]
[1756935939250,5.18091077,4457.1,4456.2,0.47]
[1756935939449,5.18091077,4457.1,4456.3,0.4528]
[1756935939450,2.24381051,4456.8,4456.3,0.4528]
[1756935939613,2.24387127,4456.6,4456.2,1.14467051]
[1756935939820,0.67467051,4457.1,4456.5,0.2896]
[1756935940020,4.50067051,4457.1,4456.5,0.2896]
[1756935940223,4.50067051,4457.1,4455.8,2.24421669]
[1756935940224,10.66542154,4456.6,4451.8,0.025]
[1756935940424,2.24662943,4451.2,4449.8,0.025]
[1756935940727,2.24662943,4451.2,4445.7,1.18805839]
[1756935940728,1.0,4449.4,4444.8,0.025]
[1756935940962,5.18091077,4447.5,4444.8,0.025]
[1756935941265,8.7290513,4449.3,4444.8,0.025]
[1756935941266,3.0,4447.9,4445.2,0.4528]
[1756935941476,2.27627255,4448.1,4445.9,2.194]
[1756935941625,0.4475,4448.3,4446.1,5.18091077]
[1756935941831,0.02810062,4448.3,4446.2,0.94529111]
[1756935942027,3.0,4448.7,4446.3,0.9228]
[1756935942351,2.76825723,4449.3,4448.6,5.18091077]
[1756935942547,5.31549859,4451.1,4449.1,8.18091077]
[1756935942548,2.76825723,4449.8,4449.1,8.18091077]
[1756935942858,0.00558496,4451.0,4449.5,3.0]
[1756935943055,2.24668312,4451.1,4449.8,0.792]
[1756935943355,0.00558496,4451.4,4450.0,0.792]
[1756935943664,0.00558496,4451.4,4449.9,0.9228]
[1756935943827,0.67563383,4451.3,4449.9,0.9228]
[1756935944155,0.67563383,4451.3,4449.9,0.47]
[1756935944156,0.00558496,4451.2,4449.9,0.47]
[1756935944365,0.00558496,4451.2,4449.6,1.725]
[1756935944366,2.24720888,4450.0,4449.6,1.725]
[1756935945056,2.24720888,4450.0,4449.6,2.195]
[1756935945267,2.25257092,4450.5,4448.2,0.47]
[1756935945268,0.00558496,4449.9,4448.2,0.47]
[1756935945474,2.24791618,4448.6,4448.4,0.4528]
[1756935945755,2.24791618,4448.6,4448.5,0.9228]
[1756935946157,2.24791618,4448.6,4448.5,1.42448]
[1756935946367,2.24782363,4448.8,4448.5,1.42448]
[1756935946656,2.24776522,4448.9,4448.5,0.97168]
[1756935946864,2.24729201,4449.8,4448.6,0.47]
[1756935947035,2.24783207,4448.8,4448.6,0.47]
[1756935947235,0.112,4449.2,4448.7,1.986148]
[1756935947438,0.00558496,4449.7,4449.1,0.112]
[1756935947439,2.24756127,4449.3,4449.1,0.112]
[1756935947758,0.112,4449.7,4449.1,0.582]
[1756935948164,0.112,4449.7,4449.2,2.1788]
[1756935948459,0.112,4449.7,4449.3,0.9228]
[1756935948660,0.112,4449.7,4449.4,0.34365084]
[1756935948847,0.112,4449.9,4449.4,1.26745084]
[1756935949031,0.112,4449.9,4449.5,0.9228]
[1756935949559,0.112,4449.9,4449.6,0.9228]
[1756935949740,0.112,4449.9,4449.7,0.47]
[1756935950835,2.24688312,4450.7,4449.8,0.47]
[1756935951030,0.112,4450.1,4449.8,0.47]
[1756935951231,0.67561557,4450.6,4450.0,0.112]
[1756935951445,0.67561557,4450.6,4450.1,4.097]
[1756935951666,0.67561557,4450.6,4450.2,5.0188]
[1756935951862,0.112,4450.7,4450.5,0.2896]
[1756935952642,0.112,4450.7,4450.6,0.47]
[1756935952835,0.112,4450.7,4450.6,0.9228]
[1756935953037,0.025,4450.8,4450.6,0.9228]
[1756935953038,0.025,4450.8,4450.6,1.2124]
[1756935953245,0.025,4450.8,4450.6,0.7424]
[1756935953246,0.70055168,4450.8,4450.6,0.7424]
[1756935953446,0.025,4450.8,4450.7,0.47]
[1756935953766,0.025,4450.8,4450.7,1.2124]
[1756935953943,0.025,4450.8,4450.7,9.12972536]
[1756935954148,0.025,4450.8,4450.7,9.01772536]
[1756935954353,0.025,4450.8,4450.7,12.01772536]
[1756935954668,0.025,4450.8,4450.7,13.49366396]
[1756935954850,0.025,4450.8,4450.7,13.60566396]
[1756935955446,0.025,4450.8,4450.7,13.49366396]
[1756935956165,0.025,4450.8,4450.7,19.29366396]
[1756935957159,1e-08,4450.8,4450.7,19.29366396]
[1756935957669,1e-08,4450.8,4450.7,15.20266396]
[1756935957875,1e-08,4450.8,4450.7,19.28466396]
[1756935961377,0.025,4451.8,4451.7,3.03833286]
[1756935961554,0.025,4451.8,4451.7,12.39027024]
[1756935961758,0.025,4451.8,4451.7,13.60350692]
[1756935961958,0.025,4451.8,4451.7,14.05100692]
[1756935963674,1e-08,4451.8,4451.7,13.60350692]
[1756935965582,1e-08,4451.8,4451.7,13.71550692]
[1756935965755,1e-08,4451.8,4451.7,19.51550692]
[1756935967982,0.00200001,4451.8,4451.7,19.51550692]
[1756935968183,0.00200001,4451.8,4451.7,19.49550692]
[1756935968564,0.00200001,4451.8,4451.7,19.49450692]
[1756935970486,0.00200001,4451.8,4451.7,19.49150692]
[1756935970690,0.00200001,4451.8,4451.7,15.44150692]
[1756935970990,0.00200001,4451.8,4451.7,19.48950692]
[1756935971960,0.00200001,4451.8,4451.7,15.44150692]
[1756935972161,0.00200001,4451.8,4451.7,19.48650692]
[1756935972398,0.00200001,4451.8,4451.7,14.50890692]
[1756935972703,0.00200001,4451.8,4451.7,18.24980692]
[1756935973198,0.00200001,4451.8,4451.7,14.20580692]
[1756935973400,0.00200001,4451.8,4451.7,9.47880692]
[1756935973693,0.00200001,4451.8,4451.7,17.45480692]
[1756935973871,0.00200001,4451.8,4451.7,18.24680692]
[1756935976798,0.29070001,4451.8,4451.7,14.20480692]
[1756935977095,0.72280001,4451.8,4451.7,18.23780692]
[1756935977297,1.19440001,4451.8,4451.7,18.23680692]
[1756935977475,0.72280001,4451.8,4451.7,18.23680692]
[1756935978206,1.19440001,4451.8,4451.7,14.20480692]
[1756935978402,1.19440001,4451.8,4451.7,12.88433286]
[1756935978577,1.19440001,4451.8,4451.7,8.912]
[1756935978774,1.19440001,4451.8,4451.7,14.668]
[1756935978978,1.19440001,4451.8,4451.7,15.46]
[1756935979177,1.19440001,4451.8,4451.7,14.668]
[1756935979577,1.19440001,4451.8,4451.7,7.639]
[1756935979781,1.19440001,4451.8,4451.7,5.865]
[1756935979993,1.19440001,4451.8,4451.7,0.112]
[1756935980203,1.19440001,4451.8,4451.7,4.138]
[1756935980377,1.19440001,4451.8,4451.7,2.31591704]
[1756935980574,3.44068241,4451.8,4451.7,2.31591704]
[1756935980998,3.44068241,4451.8,4451.7,4.023]
[1756935981913,3.44068241,4451.8,4451.6,0.112]
[1756935981914,2.24633286,4451.7,4451.6,0.112]
[1756935982077,2.24643279,4451.6,4451.5,4.021]
[1756935982273,3.43883279,4451.6,4451.5,4.021]
[1756935982918,2.24643378,4451.5,4449.3,2.24752423]
[1756935983080,1.19798496,4451.6,4449.8,4.046]
[1756935983081,2.24653472,4451.3,4449.8,4.046]
[1756935983411,0.2887,4449.9,4449.8,0.025]
[1756935983719,0.2887,4449.9,4449.8,4.058]
[1756935984086,1.1924,4449.9,4449.8,4.056]
[1756935984411,1.1924,4449.9,4449.8,4.057]
[1756935984712,1.1924,4449.9,4449.8,4.056]